[Event "*** Titled Tuesday 3|2 Blitz"]
[Site "Chess.com"]
[Date "2015.09.01"]
[Round "1"]
[White "Mugzyyy"]
[Black "MattyDPerrine"]
[Result "0-1"]
[WhiteElo "2601"]
[BlackElo "2253"]
[TimeControl "180+2"]
[EndTime "11:08:05 PDT"]
[Termination "MattyDPerrine won by checkmate"]

1. d4 {[%clk 0:03:00.4]} 1... Nf6 {[%clk 0:03:00.5]} 2. c4 {[%clk 0:03:01.5]}
2... c5 {[%clk 0:02:58.5]} 3. d5 {[%clk 0:03:02.1]} 3... b5 {[%clk 0:02:57.4]}
4. cxb5 {[%clk 0:03:03.5]} 4... a6 {[%clk 0:02:58.6]} 5. e3 {[%clk 0:03:05]}
5... g6 {[%clk 0:02:58.8]} 6. Nc3 {[%clk 0:03:05.8]} 6... Bg7 {[%clk 0:02:59.7]}
7. a4 {[%clk 0:03:02.1]} 7... d6 {[%clk 0:02:59.3]} 8. e4 {[%clk 0:03:02.4]}
8... axb5 {[%clk 0:02:55.6]} 9. Bxb5+ {[%clk 0:03:02.9]} 9... Nbd7 {[%clk
0:02:56.4]} 10. Nf3 {[%clk 0:02:58.7]} 10... O-O {[%clk 0:02:56.9]} 11. O-O
{[%clk 0:02:59.1]} 11... Ba6 {[%clk 0:02:57.9]} 12. Ra3 {[%clk 0:02:59.3]} 12...
Nb6 {[%clk 0:02:46.4]} 13. Qe2 {[%clk 0:02:56.4]} 13... Bxb5 {[%clk 0:02:37.4]}
14. axb5 {[%clk 0:02:56.1]} 14... Qc7 {[%clk 0:02:29.7]} 15. Bg5 {[%clk
0:02:35.8]} 15... h6 {[%clk 0:02:29.5]} 16. Bd2 {[%clk 0:02:32.7]} 16... Rae8
{[%clk 0:02:22.4]} 17. Rfa1 {[%clk 0:02:28.8]} 17... e6 {[%clk 0:02:23.4]} 18.
Ra7 {[%clk 0:02:28.5]} 18... Qb8 {[%clk 0:02:20.9]} 19. dxe6 {[%clk 0:02:28.8]}
19... Rxe6 {[%clk 0:02:21.7]} 20. Qd3 {[%clk 0:02:30]} 20... Rfe8 {[%clk
0:02:21.4]} 21. Bf4 {[%clk 0:02:21.7]} 21... g5 {[%clk 0:02:09.8]} 22. Bg3
{[%clk 0:02:21.5]} 22... Nc8 {[%clk 0:01:23]} 23. Ra8 {[%clk 0:02:16.7]} 23...
Qb7 {[%clk 0:01:23.7]} 24. Nd2 {[%clk 0:02:05.8]} 24... Nh5 {[%clk 0:01:23.3]}
25. Qd5 {[%clk 0:01:54.7]} 25... Qe7 {[%clk 0:01:05.3]} 26. Qc6 {[%clk
0:01:46.3]} 26... Bxc3 {[%clk 0:00:39.6]} 27. bxc3 {[%clk 0:01:38.4]} 27... Qf8
{[%clk 0:00:40.7]} 28. b6 {[%clk 0:01:29.4]} 28... d5 {[%clk 0:00:41.6]} 29.
Qxe6 {[%clk 0:01:19.5]} 29... fxe6 {[%clk 0:00:39.6]} 30. b7 {[%clk 0:01:21]}
30... Nxg3 {[%clk 0:00:34.9]} 31. b8=Q {[%clk 0:01:10.6]} 31... Ne2+ {[%clk
0:00:15.4]} 32. Kf1 {[%clk 0:01:11.1]} 32... Nxc3 {[%clk 0:00:14]} 33. Qe5
{[%clk 0:01:10]} 33... d4 {[%clk 0:00:12.5]} 34. Rxc8 {[%clk 0:01:03.7]} 34...
Rxc8 {[%clk 0:00:13.6]} 35. Qxe6+ {[%clk 0:01:04.8]} 35... Kh8 {[%clk
0:00:13.8]} 36. Ra7 {[%clk 0:01:06.1]} 36... Re8 {[%clk 0:00:07.7]} 37. Qg6
{[%clk 0:01:07.2]} 37... Re7 {[%clk 0:00:09.2]} 38. Qd6 {[%clk 0:01:00.1]} 38...
Rf7 {[%clk 0:00:07]} 39. Qe5+ {[%clk 0:01:01.1]} 39... Kg8 {[%clk 0:00:07.9]}
40. Ra6 {[%clk 0:00:57]} 40... Rxf2+ {[%clk 0:00:06.5]} 41. Ke1 {[%clk
0:00:58.3]} 41... Re2# {[%clk 0:00:07.5]} 0-1

[Event "*** Titled Tuesday 3|2 Blitz"]
[Site "Chess.com"]
[Date "2015.09.01"]
[Round "1"]
[White "Janosik"]
[Black "WanderingPuppet"]
[Result "1-0"]
[WhiteElo "2538"]
[BlackElo "2177"]
[TimeControl "180+2"]
[EndTime "11:08:05 PDT"]
[Termination "Janosik won by checkmate"]

1. d4 {[%clk 0:03:01.5]} 1... Nf6 {[%clk 0:02:58.7]} 2. c4 {[%clk 0:03:03.1]}
2... g6 {[%clk 0:03:00.1]} 3. g3 {[%clk 0:03:04]} 3... Bg7 {[%clk 0:03:01.7]} 4.
Bg2 {[%clk 0:03:05.6]} 4... d6 {[%clk 0:03:03.4]} 5. Nc3 {[%clk 0:03:06.5]} 5...
O-O {[%clk 0:03:05.1]} 6. Nf3 {[%clk 0:03:08.2]} 6... c6 {[%clk 0:03:06.8]} 7.
O-O {[%clk 0:03:09.9]} 7... Qa5 {[%clk 0:03:08.4]} 8. Bd2 {[%clk 0:03:11.1]}
8... Qh5 {[%clk 0:03:09.8]} 9. Qb3 {[%clk 0:03:12.8]} 9... b6 {[%clk 0:03:08.2]}
10. a4 {[%clk 0:03:11.6]} 10... Bh3 {[%clk 0:03:04.4]} 11. a5 {[%clk 0:03:11.8]}
11... Bxg2 {[%clk 0:03:03.9]} 12. Kxg2 {[%clk 0:03:12.8]} 12... Nbd7 {[%clk
0:03:04.1]} 13. h3 {[%clk 0:03:13.6]} 13... e5 {[%clk 0:02:51.3]} 14. dxe5
{[%clk 0:03:04.2]} 14... Nxe5 {[%clk 0:02:46.9]} 15. axb6 {[%clk 0:03:02.7]}
15... Nxf3 {[%clk 0:02:34.9]} 16. exf3 {[%clk 0:03:04.6]} 16... axb6 {[%clk
0:02:35.5]} 17. Rxa8 {[%clk 0:03:02.3]} 17... Rxa8 {[%clk 0:02:37.4]} 18. Qxb6
{[%clk 0:03:02.9]} 18... Rc8 {[%clk 0:02:30.4]} 19. Re1 {[%clk 0:02:58.3]} 19...
Qf5 {[%clk 0:02:18.7]} 20. Qb7 {[%clk 0:02:54.9]} 20... Qd7 {[%clk 0:02:07.3]}
21. Qxd7 {[%clk 0:02:54.7]} 21... Nxd7 {[%clk 0:02:09.2]} 22. Ne4 {[%clk
0:02:19.7]} 22... d5 {[%clk 0:01:28.5]} 23. Nd6 {[%clk 0:02:18.7]} 23... Rb8
{[%clk 0:01:24.2]} 24. cxd5 {[%clk 0:02:18.7]} 24... cxd5 {[%clk 0:01:24.6]} 25.
b4 {[%clk 0:02:18.2]} 25... Be5 {[%clk 0:01:18]} 26. Bf4 {[%clk 0:01:57.6]}
26... Bxf4 {[%clk 0:01:18.5]} 27. gxf4 {[%clk 0:01:59.5]} 27... Kf8 {[%clk
0:01:06.5]} 28. Rb1 {[%clk 0:01:34.9]} 28... Ke7 {[%clk 0:00:58.8]} 29. Ne4
{[%clk 0:01:30.2]} 29... dxe4 {[%clk 0:00:59.3]} 30. fxe4 {[%clk 0:01:32.1]}
30... Rb5 {[%clk 0:00:59.6]} 31. h4 {[%clk 0:01:31]} 31... Nf6 {[%clk 0:00:54]}
32. Kf3 {[%clk 0:01:31.8]} 32... Ke6 {[%clk 0:00:54.2]} 33. Ke3 {[%clk
0:01:30.8]} 33... Nd7 {[%clk 0:00:52.1]} 34. Kd4 {[%clk 0:01:29.7]} 34... Kd6
{[%clk 0:00:52.7]} 35. f3 {[%clk 0:01:29]} 35... Kc6 {[%clk 0:00:45.8]} 36. Rc1+
{[%clk 0:01:27.6]} 36... Kb6 {[%clk 0:00:42.1]} 37. Kc4 {[%clk 0:01:28.9]} 37...
Rh5 {[%clk 0:00:34.5]} 38. Rd1 {[%clk 0:01:30.2]} 38... Nb8 {[%clk 0:00:34]} 39.
Rd6+ {[%clk 0:01:31]} 39... Kc7 {[%clk 0:00:33.8]} 40. Rf6 {[%clk 0:01:32.9]}
40... Rxh4 {[%clk 0:00:29.6]} 41. Rxf7+ {[%clk 0:01:34.2]} 41... Nd7 {[%clk
0:00:30.9]} 42. e5 {[%clk 0:01:35.4]} 42... Kd8 {[%clk 0:00:27]} 43. Kd5 {[%clk
0:01:34.1]} 43... Rh1 {[%clk 0:00:20]} 44. Ke6 {[%clk 0:01:29.4]} 44... Nb6
{[%clk 0:00:14.3]} 45. b5 {[%clk 0:01:30.8]} 45... Rb1 {[%clk 0:00:12.1]} 46.
Kd6 {[%clk 0:01:27.3]} 46... Kc8 {[%clk 0:00:08.6]} 47. Kc6 {[%clk 0:01:28]}
47... Nc4 {[%clk 0:00:07]} 48. Rf8# {[%clk 0:01:28.6]} 1-0

[Event "*** Titled Tuesday 3|2 Blitz"]
[Site "Chess.com"]
[Date "2015.09.01"]
[Round "1"]
[White "Bab3s"]
[Black "Storne89"]
[Result "0-1"]
[WhiteElo "2129"]
[BlackElo "2481"]
[TimeControl "180+2"]
[EndTime "11:08:06 PDT"]
[Termination "Storne89 won by checkmate"]

1. e4 {[%clk 0:02:54.5]} 1... e5 {[%clk 0:03:00.5]} 2. Nf3 {[%clk 0:02:47.1]}
2... Nc6 {[%clk 0:03:01.2]} 3. Bb5 {[%clk 0:02:46.7]} 3... a6 {[%clk 0:03:02.3]}
4. Ba4 {[%clk 0:02:47.3]} 4... Nge7 {[%clk 0:03:03.1]} 5. O-O {[%clk 0:02:47.4]}
5... g6 {[%clk 0:03:04.2]} 6. c3 {[%clk 0:02:48.1]} 6... Bg7 {[%clk 0:03:04]} 7.
d4 {[%clk 0:02:49]} 7... exd4 {[%clk 0:03:05.4]} 8. cxd4 {[%clk 0:02:49.3]} 8...
b5 {[%clk 0:03:07.3]} 9. Bb3 {[%clk 0:02:45.5]} 9... O-O {[%clk 0:03:08.8]} 10.
Nc3 {[%clk 0:02:45]} 10... d6 {[%clk 0:03:08.8]} 11. h3 {[%clk 0:02:44.5]} 11...
Na5 {[%clk 0:03:08.9]} 12. Bc2 {[%clk 0:02:39.8]} 12... c5 {[%clk 0:03:10.5]}
13. Be3 {[%clk 0:02:40.3]} 13... Nc4 {[%clk 0:03:09.1]} 14. Bc1 {[%clk
0:02:30.5]} 14... cxd4 {[%clk 0:03:09.8]} 15. Nxd4 {[%clk 0:02:30.4]} 15... Bb7
{[%clk 0:03:11.2]} 16. Re1 {[%clk 0:02:20.7]} 16... Rc8 {[%clk 0:03:11.7]} 17.
Bb3 {[%clk 0:02:14.4]} 17... Qb6 {[%clk 0:03:11.2]} 18. Nf3 {[%clk 0:02:04.2]}
18... h6 {[%clk 0:02:41.7]} 19. Qe2 {[%clk 0:01:37.4]} 19... Rfe8 {[%clk
0:02:31.2]} 20. Bf4 {[%clk 0:01:21.6]} 20... g5 {[%clk 0:02:32.1]} 21. Bg3
{[%clk 0:01:17.3]} 21... Ng6 {[%clk 0:02:29.1]} 22. Bxc4 {[%clk 0:01:05.8]}
22... Rxc4 {[%clk 0:02:28.9]} 23. Qd3 {[%clk 0:01:04.2]} 23... Re6 {[%clk
0:02:28.7]} 24. Rad1 {[%clk 0:01:03.8]} 24... Bxc3 {[%clk 0:02:10.4]} 25. bxc3
{[%clk 0:01:02.6]} 25... Bxe4 {[%clk 0:02:12]} 26. Qd2 {[%clk 0:00:46.9]} 26...
Bxf3 {[%clk 0:02:11.7]} 27. gxf3 {[%clk 0:00:30.6]} 27... Ne5 {[%clk 0:01:56.6]}
28. Kg2 {[%clk 0:00:24.9]} 28... Qc6 {[%clk 0:01:54.6]} 29. Bxe5 {[%clk
0:00:22.8]} 29... dxe5 {[%clk 0:01:54.1]} 30. Qd8+ {[%clk 0:00:16.1]} 30... Kg7
{[%clk 0:01:54.9]} 31. Qd5 {[%clk 0:00:14.4]} 31... Qxd5 {[%clk 0:01:52.4]} 32.
Rxd5 {[%clk 0:00:14.7]} 32... f6 {[%clk 0:01:46.4]} 33. Re3 {[%clk 0:00:13.6]}
33... Rec6 {[%clk 0:01:46.8]} 34. Rd7+ {[%clk 0:00:12.8]} 34... Kg6 {[%clk
0:01:48]} 35. Ra7 {[%clk 0:00:13.5]} 35... Ra4 {[%clk 0:01:46.2]} 36. Re2 {[%clk
0:00:06.7]} 36... Rxc3 {[%clk 0:01:46.7]} 37. Rd2 {[%clk 0:00:07.5]} 37... Rf4
{[%clk 0:01:41.1]} 38. Rd6 {[%clk 0:00:05.6]} 38... Rcxf3 {[%clk 0:01:40.8]} 39.
Raxa6 {[%clk 0:00:05.3]} 39... Rxf2+ {[%clk 0:01:41.6]} 40. Kg1 {[%clk
0:00:06.3]} 40... R2f3 {[%clk 0:01:38.1]} 41. Kg2 {[%clk 0:00:05.8]} 41... e4
{[%clk 0:01:37.8]} 42. Rab6 {[%clk 0:00:05.2]} 42... Rf5 {[%clk 0:01:37.8]} 43.
Rd7 {[%clk 0:00:05]} 43... Rf2+ {[%clk 0:01:37]} 44. Kg1 {[%clk 0:00:05.6]}
44... e3 {[%clk 0:01:38.3]} 45. Re7 {[%clk 0:00:05.6]} 45... Rf1+ {[%clk
0:01:36.2]} 46. Kg2 {[%clk 0:00:05.9]} 46... R5f2+ {[%clk 0:01:37.4]} 47. Kg3
{[%clk 0:00:07]} 47... Rg1# {[%clk 0:01:31.9]} 0-1

[Event "*** Titled Tuesday 3|2 Blitz"]
[Site "Chess.com"]
[Date "2015.09.01"]
[Round "1"]
[White "Lapitch"]
[Black "Krutoy123"]
[Result "0-1"]
[WhiteElo "2450"]
[BlackElo "2183"]
[TimeControl "180+2"]
[EndTime "11:08:16 PDT"]
[Termination "Krutoy123 won by resignation"]

1. d4 {[%clk 0:00:46.1]} 1... Nf6 {[%clk 0:02:48.7]} 2. Nf3 {[%clk 0:00:48]}
2... d5 {[%clk 0:02:49.5]} 3. c4 {[%clk 0:00:49.9]} 3... e6 {[%clk 0:02:50.9]}
4. Nc3 {[%clk 0:00:51.8]} 4... Be7 {[%clk 0:02:51.8]} 5. Bf4 {[%clk 0:00:53.2]}
5... O-O {[%clk 0:02:52.1]} 6. e3 {[%clk 0:00:54.6]} 6... Nbd7 {[%clk
0:02:53.2]} 7. Qc2 {[%clk 0:00:53.7]} 7... c5 {[%clk 0:02:51.6]} 8. Rd1 {[%clk
0:00:52.2]} 8... Qa5 {[%clk 0:02:51.6]} 9. Nd2 {[%clk 0:00:53.1]} 9... cxd4
{[%clk 0:02:50.1]} 10. exd4 {[%clk 0:00:50.5]} 10... dxc4 {[%clk 0:02:47.4]} 11.
Nxc4 {[%clk 0:00:51.3]} 11... Qd8 {[%clk 0:02:47.9]} 12. Bd3 {[%clk 0:00:50.5]}
12... Nb6 {[%clk 0:02:43.6]} 13. O-O {[%clk 0:00:50.8]} 13... Nxc4 {[%clk
0:02:43.9]} 14. Bxc4 {[%clk 0:00:52.7]} 14... Bd6 {[%clk 0:02:35.6]} 15. Bg5
{[%clk 0:00:51.2]} 15... Bxh2+ {[%clk 0:02:35.5]} 16. Kh1 {[%clk 0:00:47.8]}
16... Bd6 {[%clk 0:02:36.1]} 17. d5 {[%clk 0:00:48.5]} 17... h6 {[%clk
0:02:33.5]} 18. Bh4 {[%clk 0:00:45.3]} 18... e5 {[%clk 0:02:11.7]} 19. Ne4
{[%clk 0:00:43.8]} 19... Bf5 {[%clk 0:02:04.7]} 20. Bxf6 {[%clk 0:00:17.5]}
20... Bxe4 {[%clk 0:02:05.8]} 21. Qxe4 {[%clk 0:00:17]} 21... Qxf6 {[%clk
0:02:07.3]} 22. g3 {[%clk 0:00:18.6]} 22... Rac8 {[%clk 0:02:05.7]} 23. Kg2
{[%clk 0:00:19.4]} 23... Rc7 {[%clk 0:02:06.1]} 24. Rh1 {[%clk 0:00:20.3]} 24...
Rfc8 {[%clk 0:02:07.2]} 25. Bd3 {[%clk 0:00:21.5]} 25... Bc5 {[%clk 0:01:59]}
26. Rdf1 {[%clk 0:00:20.8]} 26... Qg5 {[%clk 0:01:54]} 27. Rh4 {[%clk
0:00:20.7]} 27... g6 {[%clk 0:01:53.5]} 28. Rg4 {[%clk 0:00:20.7]} 28... Qf6
{[%clk 0:01:54.7]} 29. f4 {[%clk 0:00:21.3]} 29... exf4 {[%clk 0:01:56.1]} 30.
Rfxf4 {[%clk 0:00:23.2]} 30... Qxb2+ {[%clk 0:01:57.7]} 31. Kh3 {[%clk
0:00:24.5]} 31... Rf8 {[%clk 0:01:37.1]} 32. Rxf7 {[%clk 0:00:11.4]} 32... Rcxf7
{[%clk 0:01:26.9]} 33. Rxg6+ {[%clk 0:00:12.7]} 33... Rg7 {[%clk 0:01:22.4]} 34.
Qe6+ {[%clk 0:00:13]} 34... Rf7 {[%clk 0:01:21.8]} 35. Rxh6 {[%clk 0:00:14.2]}
35... Qc1 {[%clk 0:01:14.8]} 36. Be4 {[%clk 0:00:10.1]} 36... Qxh6+ {[%clk
0:01:10.6]} 37. Qxh6 {[%clk 0:00:10.6]} 37... Rh7 {[%clk 0:01:12.3]} 38. Bxh7+
{[%clk 0:00:12]} 38... Rxh7 {[%clk 0:01:14.2]} 39. Qxh7+ {[%clk 0:00:13.5]}
39... Kxh7 {[%clk 0:01:15.8]} 40. Kg4 {[%clk 0:00:15.4]} 40... Kg6 {[%clk
0:01:17.1]} 41. Kf4 {[%clk 0:00:16.6]} 41... Bd6+ {[%clk 0:01:18.7]} 42. Kf3
{[%clk 0:00:17.1]} 42... Kf5 {[%clk 0:01:18.5]} 43. g4+ {[%clk 0:00:18.5]} 43...
Kg5 {[%clk 0:01:19.8]} 44. a4 {[%clk 0:00:18.5]} 44... b6 {[%clk 0:01:20.9]} 45.
Ke4 {[%clk 0:00:19.5]} 45... Kxg4 {[%clk 0:01:21.7]} 46. Kd4 {[%clk 0:00:21.4]}
46... Kf5 {[%clk 0:01:22.9]} 47. Kc4 {[%clk 0:00:23.3]} 47... a6 {[%clk
0:01:24]} 48. Kd4 {[%clk 0:00:23.5]} 48... Kf4 {[%clk 0:01:25.1]} 49. Kc4 {[%clk
0:00:24.2]} 49... Ke5 {[%clk 0:01:26.1]} 0-1

[Event "*** Titled Tuesday 3|2 Blitz"]
[Site "Chess.com"]
[Date "2015.09.01"]
[Round "1"]
[White "pKiLz5Rn9b"]
[Black "AungTZ"]
[Result "1-0"]
[WhiteElo "2421"]
[BlackElo "2068"]
[TimeControl "180+2"]
[EndTime "11:08:33 PDT"]
[Termination "pKiLz5Rn9b won by resignation"]

1. e4 {[%clk 0:03:01.9]} 1... c5 {[%clk 0:03:00.3]} 2. c3 {[%clk 0:03:01.8]}
2... Nf6 {[%clk 0:03:00.3]} 3. e5 {[%clk 0:03:03]} 3... Nd5 {[%clk 0:03:01]} 4.
d4 {[%clk 0:03:04.5]} 4... cxd4 {[%clk 0:03:02.2]} 5. cxd4 {[%clk 0:03:06]} 5...
Nc6 {[%clk 0:03:02.8]} 6. Nc3 {[%clk 0:03:06.1]} 6... e6 {[%clk 0:03:02.3]} 7.
Nf3 {[%clk 0:03:03.8]} 7... d6 {[%clk 0:03:02.8]} 8. exd6 {[%clk 0:03:03.1]}
8... Bxd6 {[%clk 0:03:03.8]} 9. Bc4 {[%clk 0:02:58.6]} 9... O-O {[%clk
0:02:59.2]} 10. O-O {[%clk 0:02:57.3]} 10... Nf4 {[%clk 0:02:46]} 11. Re1 {[%clk
0:02:45.4]} 11... Ng6 {[%clk 0:02:43.2]} 12. h3 {[%clk 0:02:40.3]} 12... a6
{[%clk 0:02:42.8]} 13. Bg5 {[%clk 0:02:36.7]} 13... Qc7 {[%clk 0:02:43.1]} 14.
Rc1 {[%clk 0:02:35.3]} 14... Bd7 {[%clk 0:02:41.6]} 15. d5 {[%clk 0:02:34.7]}
15... Nce5 {[%clk 0:02:12.5]} 16. Nxe5 {[%clk 0:02:16.7]} 16... Nxe5 {[%clk
0:02:06]} 17. Bb3 {[%clk 0:02:15]} 17... Qb6 {[%clk 0:01:42.1]} 18. Bf4 {[%clk
0:01:49.6]} 18... Nc4 {[%clk 0:01:03.7]} 19. Bxd6 {[%clk 0:01:38.3]} 19... Nxd6
{[%clk 0:01:04.1]} 20. dxe6 {[%clk 0:01:39.5]} 20... Bxe6 {[%clk 0:01:02.2]} 21.
Bxe6 {[%clk 0:01:36.9]} 21... fxe6 {[%clk 0:01:03.4]} 22. Qe2 {[%clk 0:01:38.6]}
22... Kh8 {[%clk 0:01:01]} 23. Rcd1 {[%clk 0:01:38.6]} 23... Nf5 {[%clk
0:00:59.5]} 24. b3 {[%clk 0:01:29]} 24... Rae8 {[%clk 0:00:54.7]} 25. Ne4 {[%clk
0:01:24.1]} 25... e5 {[%clk 0:00:51.5]} 26. Rd5 {[%clk 0:01:11.4]} 26... Nd4
{[%clk 0:00:50.6]} 27. Qc4 {[%clk 0:01:02.6]} 27... Qg6 {[%clk 0:00:43.8]} 28.
Kh1 {[%clk 0:00:51.8]} 28... Rf4 {[%clk 0:00:33.7]} 29. Qd3 {[%clk 0:00:28.3]}
29... h6 {[%clk 0:00:27]} 30. f3 {[%clk 0:00:28.4]} 30... Ref8 {[%clk
0:00:25.6]} 31. Nf2 {[%clk 0:00:27.4]} 31... Nxf3 {[%clk 0:00:25.9]} 32. Qxg6
{[%clk 0:00:25.8]} 32... Nxe1 {[%clk 0:00:27]} 33. Ne4 {[%clk 0:00:21.1]} 33...
Rf1+ {[%clk 0:00:21]} 34. Kh2 {[%clk 0:00:22.4]} 34... Nc2 {[%clk 0:00:22.6]}
35. Rd7 {[%clk 0:00:22.6]} 35... Rg8 {[%clk 0:00:24.5]} 36. Nd6 {[%clk
0:00:21.6]} 36... Ne3 {[%clk 0:00:20.8]} 37. Nf7+ {[%clk 0:00:19.5]} 37... Rxf7
{[%clk 0:00:20.8]} 38. Qxf7 {[%clk 0:00:21.2]} 1-0

[Event "*** Titled Tuesday 3|2 Blitz"]
[Site "Chess.com"]
[Date "2015.09.01"]
[Round "1"]
[White "SCIM"]
[Black "gmsakk"]
[Result "1-0"]
[WhiteElo "2176"]
[BlackElo "2399"]
[TimeControl "180+2"]
[EndTime "11:08:34 PDT"]
[Termination "SCIM won by checkmate"]

1. d4 {[%clk 0:02:58.4]} 1... d5 {[%clk 0:03:00.9]} 2. c4 {[%clk 0:03:00]} 2...
c6 {[%clk 0:03:02]} 3. Nf3 {[%clk 0:03:01.2]} 3... Nf6 {[%clk 0:03:03.1]} 4. e3
{[%clk 0:03:02.6]} 4... Bf5 {[%clk 0:03:03.3]} 5. Nc3 {[%clk 0:03:02.8]} 5... e6
{[%clk 0:03:04.2]} 6. Qb3 {[%clk 0:03:02.2]} 6... Qb6 {[%clk 0:03:03.7]} 7. c5
{[%clk 0:02:52.6]} 7... Qc7 {[%clk 0:03:02]} 8. Nh4 {[%clk 0:02:49.5]} 8... Nbd7
{[%clk 0:02:55.8]} 9. Nxf5 {[%clk 0:02:44.2]} 9... exf5 {[%clk 0:02:55.2]} 10.
Bd3 {[%clk 0:02:44.4]} 10... g6 {[%clk 0:02:55.6]} 11. O-O {[%clk 0:02:34]}
11... Bg7 {[%clk 0:02:56.7]} 12. Qc2 {[%clk 0:02:29.5]} 12... O-O {[%clk
0:02:57.5]} 13. h3 {[%clk 0:02:25.1]} 13... Ne4 {[%clk 0:02:56.6]} 14. b4 {[%clk
0:02:02.5]} 14... Rfe8 {[%clk 0:02:51.8]} 15. b5 {[%clk 0:01:58.8]} 15... Ndxc5
{[%clk 0:02:50.5]} 16. Rb1 {[%clk 0:01:35.9]} 16... Nxd3 {[%clk 0:02:45.1]} 17.
Qxd3 {[%clk 0:01:36.4]} 17... Rac8 {[%clk 0:02:25.8]} 18. a4 {[%clk 0:01:34.5]}
18... Nxc3 {[%clk 0:02:24.6]} 19. Qxc3 {[%clk 0:01:35.1]} 19... c5 {[%clk
0:02:26.1]} 20. Qxc5 {[%clk 0:01:25.2]} 20... Qxc5 {[%clk 0:02:26.8]} 21. dxc5
{[%clk 0:01:26.8]} 21... Rxc5 {[%clk 0:02:28.5]} 22. Rd1 {[%clk 0:01:27.9]}
22... Rd8 {[%clk 0:02:23.5]} 23. Ba3 {[%clk 0:01:27.9]} 23... Rc4 {[%clk
0:02:24.4]} 24. Rb4 {[%clk 0:01:29.1]} 24... Rxb4 {[%clk 0:02:17.4]} 25. Bxb4
{[%clk 0:01:30.6]} 25... Bf6 {[%clk 0:02:12.9]} 26. Rc1 {[%clk 0:01:30.6]} 26...
d4 {[%clk 0:02:09.8]} 27. exd4 {[%clk 0:01:31.5]} 27... Bxd4 {[%clk 0:02:05.8]}
28. Rc7 {[%clk 0:01:30.6]} 28... Be5 {[%clk 0:01:58.8]} 29. Rc1 {[%clk
0:01:26.3]} 29... Kg7 {[%clk 0:01:55.6]} 30. Bc3 {[%clk 0:01:23.2]} 30... Bxc3
{[%clk 0:01:49.7]} 31. Rxc3 {[%clk 0:01:24.1]} 31... Rd7 {[%clk 0:01:48.3]} 32.
Kf1 {[%clk 0:01:17.6]} 32... Kf6 {[%clk 0:01:48.7]} 33. Ke2 {[%clk 0:01:17.3]}
33... f4 {[%clk 0:01:50.1]} 34. Kf3 {[%clk 0:01:16.4]} 34... g5 {[%clk
0:01:51.1]} 35. Rc4 {[%clk 0:01:08.2]} 35... h6 {[%clk 0:01:50.5]} 36. h4 {[%clk
0:01:07.7]} 36... Kg6 {[%clk 0:01:47.2]} 37. hxg5 {[%clk 0:01:01.6]} 37... hxg5
{[%clk 0:01:48.2]} 38. Kg4 {[%clk 0:00:53.4]} 38... f5+ {[%clk 0:01:47.8]} 39.
Kf3 {[%clk 0:00:54.3]} 39... Rd3+ {[%clk 0:01:49]} 40. Ke2 {[%clk 0:00:54.7]}
40... Ra3 {[%clk 0:01:50]} 41. Rc7 {[%clk 0:00:51.5]} 41... Rxa4 {[%clk
0:01:48.2]} 42. Rxb7 {[%clk 0:00:52.2]} 42... Ra2+ {[%clk 0:01:48.9]} 43. Kf3
{[%clk 0:00:50.6]} 43... Ra3+ {[%clk 0:01:49.6]} 44. Ke2 {[%clk 0:00:51.7]}
44... Kh5 {[%clk 0:01:51]} 45. b6 {[%clk 0:00:42.7]} 45... axb6 {[%clk
0:01:51.7]} 46. Rxb6 {[%clk 0:00:44.2]} 46... Kg4 {[%clk 0:01:48.9]} 47. Rb4
{[%clk 0:00:40.1]} 47... Rc3 {[%clk 0:01:39.9]} 48. Ra4 {[%clk 0:00:40.3]} 48...
Rc1 {[%clk 0:01:41]} 49. Rb4 {[%clk 0:00:26.4]} 49... Rc2+ {[%clk 0:01:40.9]}
50. Kf1 {[%clk 0:00:25.5]} 50... Rc6 {[%clk 0:01:33.8]} 51. Ra4 {[%clk
0:00:25.8]} 51... Re6 {[%clk 0:01:34.8]} 52. Rb4 {[%clk 0:00:26.8]} 52... Ra6
{[%clk 0:01:34.7]} 53. Rc4 {[%clk 0:00:27.7]} 53... Kh5 {[%clk 0:01:35.6]} 54.
Rb4 {[%clk 0:00:28.2]} 54... Re6 {[%clk 0:01:35.1]} 55. Rc4 {[%clk 0:00:29]}
55... Re4 {[%clk 0:01:36.4]} 56. Rc8 {[%clk 0:00:28.6]} 56... Ra4 {[%clk
0:01:31.8]} 57. Rh8+ {[%clk 0:00:24.1]} 57... Kg4 {[%clk 0:01:32.3]} 58. f3+
{[%clk 0:00:24.9]} 58... Kg3 {[%clk 0:01:33]} 59. Rh3# {[%clk 0:00:26.5]} 1-0

[Event "*** Titled Tuesday 3|2 Blitz"]
[Site "Chess.com"]
[Date "2015.09.01"]
[Round "1"]
[White "Kempsy"]
[Black "Schemato"]
[Result "1-0"]
[WhiteElo "2532"]
[BlackElo "2162"]
[TimeControl "180+2"]
[EndTime "11:08:44 PDT"]
[Termination "Kempsy won on time"]

1. e4 {[%clk 0:03:01.9]} 1... e6 {[%clk 0:03:00.6]} 2. d4 {[%clk 0:03:02.5]}
2... d5 {[%clk 0:03:00.4]} 3. Nd2 {[%clk 0:03:03.7]} 3... Be7 {[%clk 0:02:50.7]}
4. e5 {[%clk 0:03:01.1]} 4... c5 {[%clk 0:02:46.7]} 5. Qg4 {[%clk 0:03:02.2]}
5... Bf8 {[%clk 0:02:45.6]} 6. dxc5 {[%clk 0:03:00.8]} 6... Nc6 {[%clk
0:02:40.4]} 7. Ngf3 {[%clk 0:03:01.3]} 7... Nge7 {[%clk 0:02:39.1]} 8. Bd3
{[%clk 0:03:00.5]} 8... h5 {[%clk 0:02:38.2]} 9. Qf4 {[%clk 0:02:58.2]} 9... Nf5
{[%clk 0:02:14.4]} 10. Bxf5 {[%clk 0:02:56.6]} 10... exf5 {[%clk 0:02:15.1]} 11.
Nb3 {[%clk 0:02:58.2]} 11... Be6 {[%clk 0:01:55.1]} 12. O-O {[%clk 0:02:55.3]}
12... Be7 {[%clk 0:01:50.5]} 13. Rd1 {[%clk 0:02:53]} 13... Qc7 {[%clk
0:01:48.2]} 14. Be3 {[%clk 0:02:40.8]} 14... O-O-O {[%clk 0:01:35.6]} 15. Nbd4
{[%clk 0:02:38.8]} 15... Nxd4 {[%clk 0:01:17.8]} 16. Bxd4 {[%clk 0:02:30.5]}
16... Bxc5 {[%clk 0:01:16.2]} 17. Rd3 {[%clk 0:02:25.2]} 17... Bxd4 {[%clk
0:01:11.7]} 18. Qxd4 {[%clk 0:02:24.8]} 18... Kb8 {[%clk 0:01:12.1]} 19. c3
{[%clk 0:02:13.5]} 19... Qe7 {[%clk 0:00:47.7]} 20. a4 {[%clk 0:02:12.4]} 20...
g5 {[%clk 0:00:47.6]} 21. h4 {[%clk 0:02:05.2]} 21... gxh4 {[%clk 0:00:44.3]}
22. Qxh4 {[%clk 0:02:05.5]} 22... Qc7 {[%clk 0:00:41.2]} 23. Re1 {[%clk
0:01:40.7]} 23... Rdg8 {[%clk 0:00:41.3]} 24. Ng5 {[%clk 0:01:36.2]} 24... f4
{[%clk 0:00:29.8]} 25. Qxf4 {[%clk 0:01:24.2]} 25... Qe7 {[%clk 0:00:28.3]} 26.
Nxe6 {[%clk 0:01:16.7]} 26... fxe6 {[%clk 0:00:28.6]} 27. Rg3 {[%clk 0:01:06.2]}
27... h4 {[%clk 0:00:25.4]} 28. Rxg8+ {[%clk 0:01:01.3]} 28... Rxg8 {[%clk
0:00:27.3]} 29. Kh2 {[%clk 0:01:02.5]} 29... Rf8 {[%clk 0:00:23]} 30. Qe3 {[%clk
0:00:57.2]} 30... Rf5 {[%clk 0:00:22.8]} 31. f4 {[%clk 0:00:47.2]} 31... a6
{[%clk 0:00:20.9]} 32. Rf1 {[%clk 0:00:45.9]} 32... Qg7 {[%clk 0:00:18.9]} 33.
Rf3 {[%clk 0:00:45.7]} 33... Qg4 {[%clk 0:00:18.7]} 34. a5 {[%clk 0:00:38.9]}
34... Ka8 {[%clk 0:00:18.2]} 35. b4 {[%clk 0:00:39.3]} 35... Rf7 {[%clk
0:00:12.4]} 36. Qf2 {[%clk 0:00:36.5]} 36... Rg7 {[%clk 0:00:11.4]} 37. Rh3
{[%clk 0:00:34.9]} 37... Rh7 {[%clk 0:00:05.5]} 38. Rf3 {[%clk 0:00:24.7]} 38...
Rh5 {[%clk 0:00:05.9]} 39. Qb6 {[%clk 0:00:20]} 1-0